Cogmind - Beta 14 @@@ ROGUE MODE // 2024.09.03 @ 00:26:08 Player: Trione Result: Destroyed by P-80 Master with Gamma Rifle Performance ------------- Evolutions (8) 4000 Regions Visited (17) 3400 Robots Destroyed (225) 1125 Value Destroyed (10230) 10230 Prototype IDs (62) 1240 Alien Tech Used (2) 400 Bonus (7153) 7153 TOTAL SCORE: 27548 Bonus ------- High Alert Combat Kills 1886 Follower Combat Kills 2909 Network Hubs Disabled 200 Registered with UFD 300 Met Zhirov 300 Built Enhanced Grunts 300 Met R17 at Cetus 500 Met R17 at Research 2000 Friendly Fire -1242 Cogmind --------- Core Integrity 0/1450 Matter 255/300 Energy 19/100 System Corruption 15% Temperature Cool (0) Movement Core (50) Location -2/Research Parts ------- > --- POWER (3) -------- (None) > --- PROPULSION (4) --- (None) > --- UTILITY (13) ----- Advanced Signal Interpreter Graphene Brace Graphene Brace Thermal Barrier Improved Hacking Suite > --- WEAPON (3) ------- (None) > --- INVENTORY (5) ---- Advanced Energy Well (53) Improved Cloaking Device Medium Reactive Plating Dispersion Rifle Hypervelocity Mass Driver Peak State ------------ > --- POWER ------------ Heavy Antimatter Reactor Particle Reactor Improved Quantum Reactor > --- PROPULSION ------- Armored Heavy Treads Overtuned Huge Scrapsphere > --- UTILITY ---------- Scrap Suit 2N-1CE's Frost Array Huge Storage Unit Experimental Energy Well Advanced Signal Interpreter Advanced Transmission Jammer Medium Regenerative Plating Heavy Regenerative Plating Graphene Brace Advanced Force Field Improved Hacking Suite > --- WEAPON ----------- Improved Potential Cannon Power Sword > --- INVENTORY -------- Armored Medium Treads Overtuned Huge Scrapsphere Advanced Energy Well Advanced Energy Well Advanced Matter Compressor Experimental Terrain Scanner Surveybot 17 Chip Experimental Targeting Computer Improved Armor Integrity Analyzer Energy Filter Improved Transmission Jammer Improved Cloaking Device Medium Reactive Plating Medium Regenerative Plating Advanced Force Field Long-range Tractor Beam Transdimensional Reconstructor Overtuned Beamcaster Compact HERF Cannon Hypervelocity Mass Driver Improved Proton Missile Launcher Fusion Bomb Launcher Advanced Datajack Botcube [Rating: 185] Favorites ----------- Power Improved Deuterium Engine Engine Improved Deuterium Engine Power Core Neutrino Core Reactor Light Antimatter Reactor Propulsion Overtuned Huge Scrapsphere Treads Armored Heavy Treads Wheel Overtuned Huge Scrapsphere Hover Unit Improved Linear Gravjet Utility Huge Storage Unit Device Scrap Suit Storage Huge Storage Unit Processor Advanced Signal Interpreter Hackware Improved Hacking Suite Protection Improved Light Armor Plating Weapon Makeshift Spear Energy Gun Overtuned Beamcaster Energy Cannon Advanced Plasma Cannon Ballistic Gun Overtuned Coil Gun Ballistic Cannon Hypervelocity Mass Driver Launcher Grenade Launcher Slashing Weapon Power Sword Piercing Weapon Makeshift Spear Special Melee Weapon Datajack Build | -11 -10 -10 -7 -7 -5 -5 -5 -5 -5 -4 -4 -4 -4 -3 -3 -3 -2 ------- Run | Yrd Mat Sub Rec Scr Fac Ext Cet Arc Hub Fac Upp Upp Zhi Pro Res Tes Res Slots Evolved 16 | . . . . . 10 . . . . 2 . . . . 2 . 2 Power 2 | . . . . . 1 . . . . . . . . . . . 1 Propulsion 2 | . . . . . 2 . . . . . . . . . . . . Utility 11 | . . . . . 6 . . . . 2 . . . . 2 . 1 Weapon 1 | . . . . . 1 . . . . . . . . . . . . Parts Attached 401 | 6 16 25 7 1 47 18 11 12 9 20 8 9 7 22 37 101 45 Power 12 | 1 . . 1 . 2 2 . . . 1 . 1 . 1 2 . 1 Engine 4 | 1 . . 1 . 1 . . . . . . 1 . . . . . Core 2 | . . . . . 1 1 . . . . . . . . . . . Reactor 6 | . . . . . . 1 . . . 1 . . . 1 2 . 1 Propulsion 61 | 2 4 3 5 . 7 . . 2 1 1 . 2 . 2 . 21 11 Treads 22 | . . . 2 . 1 . . 1 1 . . 1 . 1 . 10 5 Leg . | . . . . . . . . . . . . . . . . . . Wheel 37 | 2 4 3 3 . 6 . . 1 . 1 . 1 . 1 . 11 4 Hover 2 | . . . . . . . . . . . . . . . . . 2 Flight . | . . . . . . . . . . . . . . . . . . Utility 174 | 1 3 . 1 . 30 7 6 7 3 9 5 4 3 8 22 44 21 Device 96 | 1 1 . . . 20 6 . 4 1 5 4 2 . 3 11 22 16 Storage 19 | . 1 . . . 5 . . . . . . . 1 . 1 9 2 Processor 4 | . . . . . . . . . . 2 . . . . 1 . 1 Hackware 4 | . . . . . 1 . . . 1 . . . . . . 2 . Protection 51 | . 1 . 1 . 4 1 6 3 1 2 1 2 2 5 9 11 2 Artifact . | . . . . . . . . . . . . . . . . . . Weapon 154 | 2 9 22 . 1 8 9 5 3 5 9 3 2 4 11 13 36 12 Energy Gun 28 | 1 1 8 . . . . . . . . . 1 1 . 3 9 4 Energy Cannon 36 | . . . . . 5 3 2 . 1 3 1 . . 1 3 13 4 Ballistic Gun 26 | 1 3 . . . 2 2 1 1 1 2 1 1 1 1 2 6 1 Ballistic Cannon 14 | . . . . . . . 1 . . 1 1 . . 2 . 6 3 Launcher 24 | . 4 7 . . . 1 1 . 2 1 . . . 3 3 2 . Special Weapon . | . . . . . . . . . . . . . . . . . . Impact Weapon . | . . . . . . . . . . . . . . . . . . Slashing Weapon 9 | . 1 2 . . . . . . . . . . 1 4 1 . . Piercing Weapon 6 | . . 3 . . 1 . . 1 1 . . . . . . . . Special Melee Weapon 11 | . . 2 . 1 . 3 . 1 . 2 . . 1 . 1 . . Unidentified Prototypes 20 | . . . . . 1 . 1 2 . . 1 . 3 . 3 8 1 Corrupted Parts 2 | . . . . . . . . 2 . . . . . . . . . System Corruption 7 | . . . . . . . . 7 . . . . . . . . . Parts Lost 36 | . 2 3 2 . 5 . . . 1 . . 2 . 1 1 1 18 Power 5 | . . . . . . . . . 1 . . 1 . 1 . . 2 Propulsion 11 | . . 2 2 . 1 . . . . . . . . . . . 6 Utility 12 | . 2 . . . 2 . . . . . . . . . 1 . 7 Weapon 8 | . . 1 . . 2 . . . . . . 1 . . . 1 3 Highest Loss Streak 14 | . 1 2 2 . 2 . . . 1 . . 1 . 1 1 1 14 To Critical Strikes . | . . . . . . . . . . . . . . . . . . Average Slot Usage (%) 88 | . 96 100 100 100 89 81 82 81 81 83 78 77 65 77 78 80 70 Engine 7 | . 14 14 14 14 9 . . . . . . 3 5 5 . . . Core 1 | . . . . . 1 4 5 5 5 5 5 1 . . . . . Reactor 3 | . . . . . . 4 5 5 4 5 5 5 5 4 8 9 10 Wheel 18 | . 27 28 27 28 18 11 11 10 9 10 10 9 10 9 9 7 4 Device 13 | . 8 . . . 21 22 17 20 17 26 26 26 22 23 27 24 21 Storage 8 | . 13 14 14 14 5 5 5 5 5 5 5 5 5 5 4 4 5 Hackware 1 | . . . . . 2 5 4 . 3 5 5 5 5 5 1 2 4 Protection 9 | . 2 14 14 14 8 5 11 12 12 10 5 5 5 7 7 9 5 Energy Gun 3 | . 16 10 14 . . . . . . . . 3 . 3 5 2 2 Energy Cannon 2 | . . . . . 9 11 5 1 3 5 9 1 . 1 3 1 . Ballistic Gun 2 | . 7 . . . 4 1 . 8 10 8 5 8 . 4 . 1 . Slashing Weapon 1 | . 2 1 . . . . . . . . . . 2 3 1 4 3 Piercing Weapon 4 | . . 9 14 14 1 . . 4 . . . . . . . . . Special Melee Weapon 3 | . . 1 . 13 . 2 . . . . . . 2 . . . . Peak Build Rating 185 | 6 10 14 20 24 96 98 110 113 119 129 126 128 122 127 149 167 185 Average Rating 72 | 4 8 12 18 20 75 93 99 107 115 127 123 119 100 121 140 148 146 On Entrance 83 | . 6 9 14 20 24 96 97 110 113 112 126 120 117 122 119 147 153 Naked Turns . | . . . . . . . . . . . . . . . . . . Heaviest Build 210 | 8 90 92 98 98 143 144 173 171 154 162 164 164 146 153 192 201 210 Greatest Support 80 | 20 20 20 20 20 40 40 40 40 80 40 40 40 40 40 40 40 40 Greatest Overweight (x) 10 | . 8 4 4 4 4 3 4 6 6 4 4 4 3 3 4 10 10 Average Overweight (x) 3 | . 3 4 4 4 3 2 3 3 2 3 4 3 3 3 3 4 2 Largest Inventory Capacity 25 | 5 25 25 25 25 25 25 25 25 25 25 25 25 25 25 25 25 25 Average Capacity 24 | 5 24 25 25 25 25 25 25 25 25 25 25 25 25 25 25 25 21 Most Carried 25 | 5 24 25 25 25 25 25 25 25 25 25 25 25 25 25 25 25 25 Average Carried 23 | 2 17 22 24 23 22 24 24 22 24 24 24 24 18 24 24 24 21 Final Capacity 25 | 5 25 25 25 25 25 25 25 25 25 25 25 25 25 25 25 25 5 Final Carried 25 | 5 21 25 25 25 25 25 25 25 25 25 25 24 25 25 25 25 5 Class Distribution -------------------- 44% | Scavenger-Scrapper 29% | Scavenger-Mutant 19% | Mutant Dominant Class ---------------- Mutant | -10/Materials Mutant | -10/Subcaves Scavenger-Mutant | -7/Recycling Scavenger-Mutant | -7/Scraptown Scavenger-Tank | -5/Factory Scavenger-Scrapper | -5/Extension Scavenger-Scrapper | -5/Cetus Scavenger-Scrapper | -5/Archives Scavenger-Scrapper | -5/Hub_04(d) Scavenger-Scrapper | -4/Factory Scavenger-Scrapper | -4/Upper Caves Scavenger-Scrapper | -4/Upper Caves Scavenger-Scrapper | -4/Zhirov Scavenger-Scrapper | -3/Proximity Caves Scavenger-Scrapper | -3/Research Scavenger-Scrapper | -3/Testing Scavenger-Mutant | -2/Research Resources | -11 -10 -10 -7 -7 -5 -5 -5 -5 -5 -4 -4 -4 -4 -3 -3 -3 -2 ----------- Run | Yrd Mat Sub Rec Scr Fac Ext Cet Arc Hub Fac Upp Upp Zhi Pro Res Tes Res Matter Collected 9679 | 267 787 1139 498 187 519 423 291 253 356 288 216 149 264 567 937 1934 604 Remotely 825 | . . . . . . . . . . . . . . . 145 415 265 Salvage Created 11235 | 68 610 344 212 . 792 853 392 462 564 832 320 273 266 920 510 2277 1540 Parts 525 | 4 62 32 9 . 28 30 14 30 23 43 10 15 2 21 23 112 67 Haulers Intercepted 4 | . 2 . . . . . . . . 1 . . . . . . 1 Recyclers Shooed 7 | 1 1 . 1 . . . . . . . . . . . 3 1 . Parts Field Recycled . | . . . . . . . . . . . . . . . . . . Retrieved Matter . | . . . . . . . . . . . . . . . . . . Parts Self-Destructed 45 | . . 5 . . . . . . . . 11 10 1 18 . . . Prevented 7 | . . . . . . . . . . . 2 5 . . . . . Kills | -11 -10 -10 -7 -7 -5 -5 -5 -5 -5 -4 -4 -4 -4 -3 -3 -3 -2 ------- Run | Yrd Mat Sub Rec Scr Fac Ext Cet Arc Hub Fac Upp Upp Zhi Pro Res Tes Res Combat Hostiles Destroyed 144 | . 16 12 1 . 12 11 5 2 3 7 3 3 . 9 10 26 24 Melee 1 | . . . 1 . . . . . . . . . . . . . . Guns 24 | . . . . . 4 2 . . . 1 1 1 . 3 3 8 1 Cannons 41 | . . . . . 7 4 2 2 . 6 1 1 . . 1 9 8 AOE 62 | . 16 12 . . . 2 1 . 3 . . . . 5 5 5 13 Classes Destroyed 27 | 2 6 3 1 . 2 2 . 1 . 1 2 . . 2 1 3 1 Worker 20 | . 10 . . . . 1 . . 3 2 . . . . . 1 3 Builder 19 | . 3 . . . . 1 . . 3 . . . . . . 10 2 Tunneler 4 | 1 2 . . . . . . . 1 . . . . . . . . Hauler 4 | . 2 . . . . . . . . 1 . . . . . . 1 Recycler 11 | 1 1 . 2 . . 1 . . 1 1 . . . . 1 3 . Minesweeper 1 | . . . . . . . . . . . 1 . . . . . . Mechanic 2 | . . . . . . . . . . . . . . . . 1 1 Operator 9 | . . . . . . . . 8 . . . . . . 1 . . Drone 2 | . . . . . . . . . . . . . . 2 . . . Turret 2 | . . 2 . . . . . . . . . . . . . . . Watcher 6 | . 1 . . . . . 1 . 1 1 . . . . . 1 1 Swarmer 22 | . 9 3 . . . . . . . . . . . . 6 . 4 Grunt 44 | . 7 . . . 7 5 . . 3 2 . . . 4 . 6 10 Brawler 3 | . . . . . . . . . . . . . . 1 . 1 1 Duelist 1 | . . . . . . . . . . . . . . 1 . . . Protector 1 | . . . . . . . . . . . . . . . . . 1 Researcher 1 | . . . . . . . . . . . . . . . . 1 . Sentry 13 | . . . 1 . 1 4 . 2 . . 1 1 . . 1 . 2 Hunter 10 | . . . . . 1 . . . . 2 . . . . . 7 . Programmer 24 | . . . . . 3 . . . . 2 1 1 . . 2 10 5 Heavy 2 | . . . . . . . . . . 1 . . . . . . 1 Behemoth 3 | . . . . . . 1 . . . . . 1 . 1 . . . Cetus Guard 5 | . . . . . . . 5 . . . . . . . . . . Enhanced Grunt 2 | . . . . . . . . . 2 . . . . . . . . Striker 2 | . . . . . . . . . . . . . . . 1 1 . Alpha 7 1 | . . . . . . . . . . . . . . . . 1 . Artisan 1 | . . 1 . . . . . . . . . . . . . . . Subdweller 9 | . . 9 . . . . . . . . . . . . . . . Decomposer 2 | . . . . . . . . . . . 1 1 . . . . . Packrat 1 | . . . . . . . . . . . 1 . . . . . . Savage 1 | . . . . . . 1 . . . . . . . . . . . Mutant 1 | . . . . . . . . . . . 1 . . . . . . Best Kill Streak 15 | 1 8 5 1 . 3 5 4 5 5 4 1 2 . 4 6 6 15 Combat Bots Only 10 | . 5 3 1 . 3 3 3 2 2 3 1 2 . 4 6 3 10 Max Kills in Single Turn 6 | 1 3 2 1 . 1 2 1 1 6 1 1 1 . 3 2 2 4 Gunslinging . | . . . . . . . . . . . . . . . . . . Exploded 4 | . 3 2 . . . 1 1 . 2 . . . . 3 2 2 4 Melee 1 | . . . 1 . . . . . . . . . . . . . . Uniques/NPCs Destroyed . | . . . . . . . . . . . . . . . . . . Combat | -11 -10 -10 -7 -7 -5 -5 -5 -5 -5 -4 -4 -4 -4 -3 -3 -3 -2 -------- Run | Yrd Mat Sub Rec Scr Fac Ext Cet Arc Hub Fac Upp Upp Zhi Pro Res Tes Res Hostile Shots Fired 1098 | . 23 42 36 . 50 36 20 2 29 18 49 27 . 50 45 394 277 Missed 287 | . 9 18 12 . 13 12 8 2 11 10 14 3 . 12 15 74 74 Damage Taken 13459 | . 190 423 191 . 960 605 171 . 581 192 407 639 . 642 601 2820 5037 Core 2039 | . 47 149 39 . 134 58 . . 63 . . . . 37 15 118 1379 Absorbed by Shields 3852 | . . . . . . 11 118 . . . . . . 213 246 2242 1022 Reduced by Siege Mode 291 | . . . . . . . . . . . . 25 . . . 111 155 Redirected to Shielding 11 | . . 10 1 . . . . . . . . . . . . . . Ignored by Resistances 1129 | . . . . . . . 99 . . . . . . . 36 994 . Regen/Repaired (Parts) 1708 | . . . . . 10 . . . . 10 10 . . 30 20 1286 342 Core Remaining (%) 73 | 100 . . . 6 . . . . 74 . . . . 96 . 89 . Volleys Fired 783 | 7 61 71 . . 78 40 28 4 27 50 57 13 . 56 70 172 49 Largest 3 | 2 2 1 . . 3 3 3 3 3 3 3 3 . 3 3 2 2 Hottest 253 | 60 105 40 . . 205 253 239 191 165 218 218 179 . 198 203 205 200 Shots Fired 1147 | 14 99 71 . . 137 85 29 11 56 77 86 22 . 74 89 232 65 Gun 513 | 14 76 . . . 26 9 . 5 42 22 22 13 . 58 60 139 27 Cannon 514 | . . . . . 111 73 25 6 9 55 64 9 . 12 25 87 38 Launcher 120 | . 23 71 . . . 3 4 . 5 . . . . 4 4 6 . Special . | . . . . . . . . . . . . . . . . . . Kinetic 368 | 7 27 3 . . 26 12 22 9 45 22 28 10 . 25 13 100 19 Thermal 608 | 7 49 . . . 111 73 2 2 9 44 51 8 . 45 54 107 46 Explosive 101 | . 23 68 . . . . . . 2 . . . . 4 4 . . Electromagnetic 70 | . . . . . . . 5 . . 11 7 4 . . 18 25 . Robot Hit Streak 25 | 3 10 4 . . 8 17 11 7 3 6 8 16 . 25 11 17 16 Robot Miss Streak 10 | 2 4 2 . . 10 2 3 2 4 6 4 1 . 4 3 2 2 Penetration Max 2 | . . . . . . 1 . 1 2 1 1 . . . 1 1 . Secondary Targets 1 | . . . . . . . . . . . . . . . . 1 . Max Gunslinging Chain 1 | . . . . . . . . . . . . . . . . 1 . Shots Hit Robots 690 | 9 55 8 9 4 55 96 13 25 16 34 33 17 8 53 49 152 54 Core Hits 370 | 3 59 23 3 . 24 25 10 14 27 17 7 6 4 21 28 63 36 Critical Kills 32 | . . . . . 2 2 2 2 . 3 1 2 . 1 . 11 6 Critical Parts Destroyed 27 | . . . . . 1 . 4 . 1 . 2 . . 3 4 10 2 Critical Strikes 103 | . . . 1 . 3 2 6 4 1 3 3 5 . 10 6 43 16 Burn 25 | . . . . . . . . . . . . 1 . 6 2 13 3 Meltdown 7 | . . . . . 1 2 . . . 1 1 . . . . . 2 Destroy 66 | . . . . . 2 . 6 2 1 2 2 4 . 4 4 29 10 Corrupt 1 | . . . . . . . . . . . . . . . . 1 . Sever 1 | . . . . . . . . . . . . . . . . . 1 Impale 3 | . . . 1 . . . . 2 . . . . . . . . . Melee Attacks 217 | . 6 52 11 4 7 32 . 18 5 3 . . 8 9 4 48 10 Impact . | . . . . . . . . . . . . . . . . . . Slashing 87 | . 6 7 . . . . . . . . . . 5 9 2 48 10 Piercing 85 | . . 45 11 . 7 . . 17 5 . . . . . . . . Sneak Attacks 71 | . 5 1 3 4 1 31 . 14 . 3 . . 3 . 2 4 . Combat Hostiles 1 | . . . . . 1 . . . . . . . . . . . . Follow-up Attacks . | . . . . . . . . . . . . . . . . . . Damage Inflicted 33102 | 92 1788 1490 324 . 1711 2259 583 1111 1999 1174 1028 451 418 2482 2229 6631 7332 Guns 8486 | 92 506 . . . 338 243 . 150 515 364 430 268 . 1183 996 2719 682 Cannons 10209 | . . . . . 1313 1595 239 81 99 810 598 183 . 63 391 2308 2529 Explosions 11006 | . 1046 1300 . . . 415 344 . 1309 . . . . 599 842 1235 3916 Melee 3388 | . 236 190 324 . 60 . . 880 76 . . . 418 637 . 369 198 Ramming 13 | . . . . . . 6 . . . . . . . . . . 7 Kinetic 6020 | 30 138 372 . . 338 658 206 196 878 364 459 205 . 365 199 1330 282 Thermal 17297 | 62 368 . . . 1313 1595 33 35 99 448 443 142 . 881 890 4143 6845 Explosive 3761 | . 1046 928 . . . . . . 346 . . . . 599 842 . . Electromagnetic 2623 | . . . . . . . 344 . 600 362 126 104 . . 298 789 . Impact . | . . . . . . . . . . . . . . . . . . Slashing 1858 | . 236 . . . . . . . . . . . 418 637 . 369 198 Piercing 1530 | . . 190 324 . 60 . . 880 76 . . . . . . . . Highest Corruption 25 | . . . . . 6 6 6 6 3 . 2 2 2 2 4 25 15 Average Corruption 5 | . . . . . 4 6 6 4 1 . 1 2 2 2 3 12 3 Corruption Purged 13 | . . . . . . . . 13 . . . . . . . . . Corruption Blocked . | . . . . . . . . . . . . . . . . . . Effects 262 | . . . . . 26 55 14 9 . . 10 9 6 15 38 72 8 Message Errors 67 | . . . . . 3 15 1 2 . . 4 1 3 7 9 18 4 Matter Fused 55 | . . . . . 5 16 3 1 . . 1 3 3 4 6 13 . Heat Flow Errors 25 | . . . . . 3 6 5 . . . . 1 . 1 4 5 . Energy Discharges 33 | . . . . . 2 6 2 4 . . 1 2 . 1 8 6 1 Parts Rejected 6 | . . . . . 1 1 . . . . . . . 1 . 3 . Parts Fused 2 | . . . . . . . . . . . . . . . 1 . 1 Data Loss (minor) 23 | . . . . . 5 4 2 1 . . 1 . . . 3 7 . Data Loss (major) 18 | . . . . . 3 3 . . . . 1 1 . . 3 7 . Misfires 15 | . . . . . 2 2 . 1 . . 1 . . . 4 5 . Alerts 6 | . . . . . 2 1 . . . . . 1 . . . 2 . Misdirections 2 | . . . . . . . . . . . . . . . . . 2 Weapon Failures 10 | . . . . . . 1 1 . . . 1 . . 1 . 6 . Overload Shots . | . . . . . . . . . . . . . . . . . . Overflow Damage 2777 | . 47 15 139 . 69 46 11 78 89 1 109 . 52 289 33 880 919 Projectiles 1296 | . . . . . 69 46 . . 17 1 109 . . . 11 452 591 Explosions 758 | . 26 15 . . . . 11 . 72 . . . . 13 22 271 328 Melee 723 | . 21 . 139 . . . . 78 . . . . 52 276 . 157 . Knockbacks 11 | . . . . . . . . . . . . . . 3 2 4 2 Impact . | . . . . . . . . . . . . . . . . . . Kinetic 11 | . . . . . . . . . . . . . . 3 2 4 2 Secondary . | . . . . . . . . . . . . . . . . . . Self-Inflicted Damage 471 | . 58 136 . . . 3 22 . 92 . . . . . 114 43 3 Shots 18 | . 3 7 . . . . 1 . 1 . . . . . 3 3 . Rammed 3 | . . . . . . 1 . . . . . . . . . . 2 Targets Rammed 3 | . . . . . . 1 . . . . . . . . . . 2 Kicked . | . . . . . . . . . . . . . . . . . . Crushed . | . . . . . . . . . . . . . . . . . . Highest Temperature 512 | 20 180 . . . 512 246 327 108 205 136 370 239 . 128 201 393 230 Average Temperature 77 | 13 39 . . . 84 90 115 57 79 35 180 101 . 49 51 81 130 Received Heat Transfer 1565 | . 48 84 60 . 135 153 9 . 129 . 60 63 . 172 24 127 501 Effects 9 | . . . . . 6 . . . . . . . . . . 3 . Shutdowns 2 | . . . . . 2 . . . . . . . . . . . . Energy Bleed 1 | . . . . . . . . . . . . . . . . 1 . Interference 5 | . . . . . 3 . . . . . . . . . . 2 . Damage (minor) 1 | . . . . . 1 . . . . . . . . . . . . Siege Activations 22 | . . . . . . . . . 2 . . 1 . 1 . 12 6 Total Turns 559 | . . . . . . . . . 29 . . 18 . 32 . 349 131 Longest Duration 79 | . . . . . . . . . 17 . . 18 . 32 . 79 42 Robots Corrupted 6 | . . . . . . . 2 . . . 1 . . . 1 2 . Combat Hostiles 6 | . . . . . . . 2 . . . 1 . . . 1 2 . Parts Fried 19 | . . . . . . . 2 . 4 1 1 . . . 3 8 . Impact Corruptions . | . . . . . . . . . . . . . . . . . . Robots Melted 12 | . . . . . 1 3 . . . 1 1 1 . 1 . 2 2 Combat Hostiles 9 | . . . . . 1 2 . . . . . 1 . 1 . 2 2 Parts Melted 52 | . 1 . . . 6 11 1 . . . . 1 . 3 . 22 7 Heat Transferred 22019 | 150 710 . . . 1840 2449 50 50 150 624 444 350 . 2150 1443 6038 5571 Parts Sabotaged . | . . . . . . . . . . . . . . . . . . Parts Stolen . | . . . . . . . . . . . . . . . . . . Parts Stripped . | . . . . . . . . . . . . . . . . . . Power Chain Reactions 1 | . . . . . . . . . . . . . . . . 1 . Alert | -11 -10 -10 -7 -7 -5 -5 -5 -5 -5 -4 -4 -4 -4 -3 -3 -3 -2 ------- Run | Yrd Mat Sub Rec Scr Fac Ext Cet Arc Hub Fac Upp Upp Zhi Pro Res Tes Res Peak Influence 1588 | 10 395 . 156 . 395 397 430 275 1588 1082 . . . . 650 902 1469 Initial 763 | . 6 . . . . 149 190 92 . 763 . . . . 450 159 507 Average 366 | 4 211 . 73 . 177 199 302 127 781 835 . . . . 396 536 924 Maximum Alert Level 4 | . 1 . . . 1 1 2 1 4 3 . . . . 2 3 4 Low Security (%) 31 | 100 53 . 100 . 56 45 6 62 16 . . . . . . 5 . Level 1 36 | . 46 . . . 43 54 72 37 3 . . . . . 56 22 . Level 2 17 | . . . . . . . 20 . 26 7 . . . . 43 50 40 Level 3 11 | . . . . . . . . . 19 92 . . . . . 20 18 Level 4 2 | . . . . . . . . . 33 . . . . . . . 41 Level 5 . | . . . . . . . . . . . . . . . . . . High Security . | . . . . . . . . . . . . . . . . . . Max Security . | . . . . . . . . . . . . . . . . . . Squads Dispatched 44 | . 3 . . . 8 1 . . 6 6 . . . . 5 7 8 Investigation 14 | . 3 . . . 4 1 . . 1 1 . . . . 3 . 1 Extermination 6 | . . . . . 1 . . . . 1 . . . . . 3 1 Reinforcement 20 | . . . . . 3 . . . 3 4 . . . . 2 4 4 Assault 3 | . . . . . . . . . 1 . . . . . . . 2 Garrison 1 | . . . . . . . . . 1 . . . . . . . . Intercept . | . . . . . . . . . . . . . . . . . . Searches Triggered . | . . . . . . . . . . . . . . . . . . Construction Impeded 1 | . . . . . . . . . . . . . . . . 1 . Haulers Reinforced 3 | . . . . . . . . . . 2 . . . . 1 . . Active Scanning Responses . | . . . . . . . . . . . . . . . . . . Cargo Convoy Interrupts . | . . . . . . . . . . . . . . . . . . Stealth | -11 -10 -10 -7 -7 -5 -5 -5 -5 -5 -4 -4 -4 -4 -3 -3 -3 -2 --------- Run | Yrd Mat Sub Rec Scr Fac Ext Cet Arc Hub Fac Upp Upp Zhi Pro Res Tes Res Distress Signals 20 | . 2 . . . 3 1 2 . 1 2 . . . . 2 2 5 Communications Jammed 171 | . . . . . . 37 . 1 48 7 . . . 2 1 20 55 Distress Signals 165 | . . . . . . 37 . 1 47 7 . . . . 1 18 54 Times Spotted 314 | . 28 14 1 . 27 39 11 10 22 14 6 3 . 10 28 42 59 Peak Tracking Total 19 | . 4 6 1 . 5 5 5 1 6 4 2 2 . 4 6 4 19 Tactical Retreats 13 | . . . . . 3 2 . . 1 . . 1 . . . 3 3 Traps | -11 -10 -10 -7 -7 -5 -5 -5 -5 -5 -4 -4 -4 -4 -3 -3 -3 -2 ------- Run | Yrd Mat Sub Rec Scr Fac Ext Cet Arc Hub Fac Upp Upp Zhi Pro Res Tes Res Traps Triggered 19 | . 4 . . . 3 7 . . . . . . . . . 2 3 Indirectly . | . . . . . . . . . . . . . . . . . . Trap Hack Attempts 33 | . . 33 . . . . . . . . . . . . . . . Triggered . | . . . . . . . . . . . . . . . . . . Disarmed . | . . . . . . . . . . . . . . . . . . Reprogrammed 3 | . . 3 . . . . . . . . . . . . . . . Reused . | . . . . . . . . . . . . . . . . . . Traps Extracted . | . . . . . . . . . . . . . . . . . . Installed 1 | . . 1 . . . . . . . . . . . . . . . Triggered . | . . . . . . . . . . . . . . . . . . Most Traps Carried 1 | . . 1 . . . . . . . . . . . . . . . Machines | -11 -10 -10 -7 -7 -5 -5 -5 -5 -5 -4 -4 -4 -4 -3 -3 -3 -2 ---------- Run | Yrd Mat Sub Rec Scr Fac Ext Cet Arc Hub Fac Upp Upp Zhi Pro Res Tes Res Machines Disabled 41 | . 1 4 . . 4 5 1 . 8 3 1 . . . . 12 2 Max in Single Turn 3 | . 1 3 . . 1 1 . . 3 1 1 . . . . 1 1 Garrison Access 6 | . . . . . 2 . . . 2 . . . . . 1 1 . Network Hub 1 | . . . . . . . . . 1 . . . . . . . . Machines Repaired . | . . . . . . . . . . . . . . . . . . Machines Dismantled . | . . . . . . . . . . . . . . . . . . Machines Sabotaged . | . . . . . . . . . . . . . . . . . . Overloaded Fab Kills . | . . . . . . . . . . . . . . . . . . Hacking | -11 -10 -10 -7 -7 -5 -5 -5 -5 -5 -4 -4 -4 -4 -3 -3 -3 -2 --------- Run | Yrd Mat Sub Rec Scr Fac Ext Cet Arc Hub Fac Upp Upp Zhi Pro Res Tes Res Machines Accessed 82 | . 5 3 5 3 14 17 . . 4 5 . . 7 1 4 13 1 Terminals 47 | . 4 . 1 . 9 16 . . 3 3 . . . 1 2 8 . Fabricators 1 | . . . . . . . . . . . . . . . . 1 . Repair Stations 1 | . . . . . . . . . . . . . . . . 1 . Recycling Units 11 | . 1 . 4 . 3 1 . . . 1 . . . . . . 1 Scanalyzers 3 | . . . . . . . . . . 1 . . . . . 2 . Garrison Access 6 | . . . . . 2 . . . 1 . . . . . 2 1 . Total Hacks 214 | . 16 7 9 9 24 39 . . 10 13 . . 46 1 6 33 1 Successful 131 | . 8 7 5 9 10 19 . . 2 7 . . 46 1 1 15 1 Failed 83 | . 8 . 4 . 14 20 . . 8 6 . . . . 5 18 . Catastrophic 23 | . 1 . . . 4 6 . . 1 1 . . . . 3 7 . Database Lockouts . | . . . . . . . . . . . . . . . . . . Manual 95 | . 12 . 6 . 18 25 1 . 7 8 . . . . . 17 1 Terminals 115 | . 14 . 4 . 19 35 . . 8 10 . . . 1 3 21 . Fabricators 2 | . . . . . . . . . . . . . . . . 2 . Repair Stations 3 | . . . . . . . . . . . . . . . . 3 . Recycling Units 16 | . 2 . 5 . 3 4 . . . 1 . . . . . . 1 Scanalyzers 5 | . . . . . . . . . . 2 . . . . . 3 . Garrison Access 11 | . . . . . 2 . . . 2 . . . . . 3 4 . Terminal Hacks 90 | . 1 7 1 9 2 14 . . 1 3 . . 46 1 . 5 . Record 48 | . . 5 . 8 . . . . . . . . 34 1 . . . Part Schematic 6 | . . . . . . 1 . . . . . . 4 . . 1 . Robot Analysis 6 | . 1 . 1 . . . . . . . . . 4 . . . . Prototype ID Bank 4 | . . . . . . . . . . . . . 4 . . . . Open Door 8 | . . 1 . . . 6 . . . . . . . . . 1 . Branch Access Points 1 | . . . . . 1 . . . . . . . . . . . . Terminal Index 3 | . . . . . . . . . 1 1 . . . . . 1 . Alert Level 1 | . . . . . . . . . . . . . . . . 1 . Unreport Threat 7 | . . . . . . 5 . . . 1 . . . . . 1 . Locate Traps 3 | . . . . . 1 1 . . . 1 . . . . . . . Zone Layout 1 | . . . . . . 1 . . . . . . . . . . . Derelict Proto ID Bank 1 | . . . . 1 . . . . . . . . . . . . . Release Object 1 | . . 1 . . . . . . . . . . . . . . . Fabricator Hacks . | . . . . . . . . . . . . . . . . . . Repair Station Hacks 2 | . . . . . . . . . . . . . . . . 2 . Scan Component 1 | . . . . . . . . . . . . . . . . 1 . Repair 1 | . . . . . . . . . . . . . . . . 1 . Recycling Unit Hacks 2 | . 2 . . . . . . . . . . . . . . . . Process 1 | . 1 . . . . . . . . . . . . . . . . Retrieve Matter 1 | . 1 . . . . . . . . . . . . . . . . Scanalyzer 3 | . . . . . . . . . . 2 . . . . . 1 . Insert Component 3 | . . . . . . . . . . 2 . . . . . 1 . Garrison Access Hacks 5 | . . . . . 2 . . . 1 . . . . . 1 1 . Seal Access 5 | . . . . . 2 . . . 1 . . . . . 1 1 . Unauthorized Hacks 29 | . 5 . 4 . 6 5 . . . 2 . . . . . 6 1 Terminals 17 | . 5 . . . 3 4 . . . 1 . . . . . 4 . Track 1 | . . . . . . . . . . . . . . . . 1 . Botnet 14 | . 4 . . . 3 3 . . . 1 . . . . . 3 . Operators 2 | . 1 . . . . 1 . . . . . . . . . . . Fabricators 1 | . . . . . . . . . . . . . . . . 1 . Liberate 1 | . . . . . . . . . . . . . . . . 1 . Repair Stations 6 | . . . . . 3 1 . . . 1 . . . . . . 1 Recycling Units 4 | . . . 4 . . . . . . . . . . . . . . Tunnel 4 | . . . 4 . . . . . . . . . . . . . . Fedlink 1 | . . . . . 1 . . . . . . . . . . . . Scrapoids 5 | . . . . . 2 1 . . . 1 . . . . . . 1 Scanalyzers 1 | . . . . . . . . . . . . . . . . 1 . Researchers 1 | . . . . . . . . . . . . . . . . 1 . Garrison Access . | . . . . . . . . . . . . . . . . . . Data Cores Recovered . | . . . . . . . . . . . . . . . . . . Used . | . . . . . . . . . . . . . . . . . . Hacking Detections 48 | . 5 . 1 . 9 13 . . 4 3 . . . . 3 10 . Full Trace Events 2 | . . . . . . . . . 1 . . . . . 1 . . Feedback Events . | . . . . . . . . . . . . . . . . . . Feedback Blocked . | . . . . . . . . . . . . . . . . . . Robot Schematics Acquired 1 | . . . . . . . . . . . . . . . . 1 . Robots Built . | . . . . . . . . . . . . . . . . . . Authchips . | . . . . . . . . . . . . . . . . . . Time . | . . . . . . . . . . . . . . . . . . Total Robot Build Rating . | . . . . . . . . . . . . . . . . . . Part Schematics Acquired 8 | . . . . . . 1 . . . . . . 4 . . 3 . Parts Built . | . . . . . . . . . . . . . . . . . . Authchips . | . . . . . . . . . . . . . . . . . . Time . | . . . . . . . . . . . . . . . . . . Total Part Build Rating . | . . . . . . . . . . . . . . . . . . Parts Repaired 1 | . . . . . . . . . . . . . . . . 1 . Time 28 | . . . . . . . . . . . . . . . . 28 . Parts Recycled . | . . . . . . . . . . . . . . . . . . Recycled Matter 197 | . 197 . . . . . . . . . . . . . . . . Retrieved Matter 162 | . 162 . . . . . . . . . . . . . . . . Retrieved Components . | . . . . . . . . . . . . . . . . . . Parts Scanalyzed . | . . . . . . . . . . . . . . . . . . Part Schematics Acquired . | . . . . . . . . . . . . . . . . . . Parts Damaged . | . . . . . . . . . . . . . . . . . . Bothacking | -11 -10 -10 -7 -7 -5 -5 -5 -5 -5 -4 -4 -4 -4 -3 -3 -3 -2 ------------ Run | Yrd Mat Sub Rec Scr Fac Ext Cet Arc Hub Fac Upp Upp Zhi Pro Res Tes Res Used RIF Installer . | . . . . . . . . . . . . . . . . . . Robots Hacked 11 | . . . . 3 . . . 1 . 2 . . 3 . 2 . . Non-combat 2 | . . . . 1 . . . . . 1 . . . . . . . Combat 9 | . . . . 2 . . . 1 . 1 . . 3 . 2 . . Robot Hacks Applied 13 | . . . . 4 . . . 1 . 3 . . 3 . 2 . . parse_system 12 | . . . . 4 . . . 1 . 2 . . 3 . 2 . . find_chute 1 | . . . . . . . . . . 1 . . . . . . . Relay Couplers Released 7 | . . . . . 4 . . . 1 . . . . . . 2 . Machine Destruction 3 | . . . . . . . . . 1 . . . . . . 2 . Programmers 4 | . . . . . 4 . . . . . . . . . . . . Fabnet Peak Effective % . | . . . . . . . . . . . . . . . . . . Robots Rewired 17 | . . . . . . 17 . . . . . . . . . . . Allies Hacked . | . . . . . . . . . . . . . . . . . . Hacks Repelled . | . . . . . . . . . . . . . . . . . . Allies | -11 -10 -10 -7 -7 -5 -5 -5 -5 -5 -4 -4 -4 -4 -3 -3 -3 -2 -------- Run | Yrd Mat Sub Rec Scr Fac Ext Cet Arc Hub Fac Upp Upp Zhi Pro Res Tes Res Total Allies 57 | . . . . . 10 31 5 1 . 5 . . . . . . 5 Largest Group 11 | . . . . . 5 11 7 6 5 6 1 . . . . . 5 Highest-Rated Group 670 | . . . . . 244 340 670 574 380 284 36 . . . . . 320 Highest-Rated Ally 159 | . . . . . 50 159 159 159 96 50 36 . . . . . 64 Total Orders 44 | . . . . . 10 2 6 1 . 7 2 . . . 16 . . STAY 12 | . . . . . 3 1 2 1 . 4 1 . . . . . . FOLLOW 9 | . . . . . . 1 4 . . 3 1 . . . . . . EXPLORE 16 | . . . . . 6 . . . . . . . . . 10 . . RETURN 7 | . . . . . 1 . . . . . . . . . 6 . . Ally Attacks 545 | . . . . . 78 237 30 7 92 83 8 . . . . . 10 Total Damage 12370 | . . . . . 1825 4292 785 181 2876 1820 287 . . . . . 304 Kills 86 | . . . . . 12 37 4 1 20 7 3 . . . . . 2 Allies Corrupted 1 | . . . . . . 1 . . . . . . . . . . . Allies Melted 1 | . . . . . . 1 . . . . . . . . . . . Intel | -11 -10 -10 -7 -7 -5 -5 -5 -5 -5 -4 -4 -4 -4 -3 -3 -3 -2 ------- Run | Yrd Mat Sub Rec Scr Fac Ext Cet Arc Hub Fac Upp Upp Zhi Pro Res Tes Res Robot Analysis Total 6 | . 1 . 1 . . . . . . . . . 4 . . . . Derelict Logs Recovered 1 | . . 1 . . . . . . . . . . . . . . . Drone Launches 16 | . . . . . 4 . . . . . . . . . 12 . . Drone Recoveries 10 | . . . . . 2 . . . . . . . . . 8 . . Exploration | -11 -10 -10 -7 -7 -5 -5 -5 -5 -5 -4 -4 -4 -4 -3 -3 -3 -2 ------------- Run | Yrd Mat Sub Rec Scr Fac Ext Cet Arc Hub Fac Upp Upp Zhi Pro Res Tes Res Turns Passed 23786 | 74 1649 2730 405 5625 1601 1861 403 1004 380 923 976 559 312 978 1825 1942 539 Spaces Moved 16514 | 56 1040 1689 261 3989 1107 1398 204 834 245 705 733 494 266 781 1413 971 328 Core 72 | 15 . . . . . . . . . . . . . . . . 57 Treads 6 | . . . . . . . . . 6 . . . . . . . . Legs . | . . . . . . . . . . . . . . . . . . Wheels 16323 | 41 1040 1689 261 3989 1107 1398 204 834 239 705 733 494 266 781 1413 971 158 Hover 113 | . . . . . . . . . . . . . . . . . 113 Flight . | . . . . . . . . . . . . . . . . . . Fastest Speed 36 | 50 80 140 140 140 100 90 100 100 100 100 110 100 100 100 100 110 36 Average Speed 119 | 71 137 140 140 140 113 99 109 102 103 101 110 102 100 100 108 114 81 Slowest Speed 240 | 80 200 140 140 140 132 100 110 130 240 110 110 110 100 100 110 170 170 Overloaded Moves . | . . . . . . . . . . . . . . . . . . Propulsion Burnouts . | . . . . . . . . . . . . . . . . . . Robots Hopped . | . . . . . . . . . . . . . . . . . . Cave-ins Triggered . | . . . . . . . . . . . . . . . . . . Teleports 1 | . . . . . . . . . . . . . . . . . 1 Exploration Rate (%) 56 | 3 96 60 32 94 41 95 56 83 23 15 58 59 62 79 46 96 16 Regions Visited 17 Branch Regions 12 Pre-discovered Areas 8 | . . 1 4 . . . . . . . . . 3 . . . . Known Exits Taken 4 | . . . . . 1 . . . . 1 . . . . 1 1 . Unknown Exits Taken 13 | 1 1 1 1 1 . 1 1 1 1 . 1 1 1 1 . . . Scrap Searched 11 | . . 2 . 4 . . . . . . 1 1 . 3 . . . Spaces Dug 395 | . 7 32 . . 34 1 . . 191 16 12 1 . 2 25 39 35 Terrain Destroyed 1222 | . 100 288 . . 55 43 . 2 258 37 50 4 . 55 62 103 165 Melee 65 | . . 16 . . 3 . . . . . . . . 1 2 38 5 Projectile 262 | . . . . . 52 12 . 2 25 37 50 4 . 20 17 37 6 AOE 892 | . 100 272 . . . 31 . . 233 . . . . 34 42 26 154 Terrain Rammed . | . . . . . . . . . . . . . . . . . . Walls Destroyed . | . . . . . . . . . . . . . . . . . . Machines Disabled . | . . . . . . . . . . . . . . . . . . Actions | -11 -10 -10 -7 -7 -5 -5 -5 -5 -5 -4 -4 -4 -4 -3 -3 -3 -2 --------- Run | Yrd Mat Sub Rec Scr Fac Ext Cet Arc Hub Fac Upp Upp Zhi Pro Res Tes Res Total 19425 | 73 1149 1932 288 4038 1337 1784 354 972 323 851 839 535 309 918 1637 1564 522 Wait 869 | . . 8 1 . 54 243 100 39 34 47 26 13 6 31 72 154 41 Move 16497 | 55 1039 1688 260 3988 1106 1397 203 833 244 704 732 493 265 780 1412 970 328 Hop . | . . . . . . . . . . . . . . . . . . Pick Up 231 | 5 21 29 5 23 23 3 4 28 1 13 6 1 9 8 16 25 11 Fast Attach 100 | 6 4 . . . 6 . 2 7 1 2 2 3 5 2 7 38 15 Attach 88 | . 1 3 2 . 16 1 3 1 . 8 . 3 2 7 12 15 14 Detach 71 | . . . . . 3 . 2 3 1 5 . 3 1 2 7 30 14 Swap 215 | . 11 22 5 1 25 17 6 4 8 10 6 3 1 13 18 48 17 Drop 262 | . 6 24 4 22 19 8 6 32 2 9 10 3 12 9 19 56 21 Fire 783 | 7 61 71 . . 78 40 28 4 27 50 57 13 . 56 70 172 49 Melee 217 | . 6 52 11 4 7 32 . 18 5 3 . . 8 9 4 48 10 Ram 3 | . . . . . . 1 . . . . . . . . . . 2 Kick . | . . . . . . . . . . . . . . . . . . Crush . | . . . . . . . . . . . . . . . . . . Escape Stasis 48 | . . . . . . 40 . . . . . . . . . 8 . Rewire 5 | . . . . . . 2 . 3 . . . . . . . . . Trap 34 | . . 34 . . . . . . . . . . . . . . . Miscellaneous 2 | . . 1 . . . . . . . . . . . 1 . . . Route ------- -11/Scrapyard -10/Materials (discovered 6 exits: [*Mat x3] / [*Min x2] / *Sub) -10/Subcaves -7/Recycling -7/Scraptown (discovered 2 exits: *Fac x2) -5/Factory (discovered 6 exits: *Fac x2 / *Upp x2 / *Ext x2) -5/Extension (discovered 2 exits: *Fac / *Cet) -5/Cetus (discovered 2 exits: *Fac / [*Arc]) -5/Archives (discovered 3 exits: *Fac / *Hub x2) -5/Hub_04(d) -4/Factory -4/Upper Caves -4/Upper Caves -4/Zhirov -3/Proximity Caves -3/Research (discovered 5 exits: *Res x3 / *Tes x2) -3/Testing -2/Research History --------- Turn | Location | Event 7 | -11/Scrapyard | Discovered new exit (range 15) 75 | -11/Scrapyard | Entered Materials 99 | -10/Materials | Discovered new exit (range 7) 306 | -10/Materials | Build established: Mutant 451 | -10/Materials | Discovered new exit (range 5) 570 | -10/Materials | Discovered new exit (range 16) 744 | -10/Materials | Discovered new exit (range 16) 1130 | -10/Materials | Discovered new exit (range 16) 1698 | -10/Materials | Discovered new exit (range 10) 1724 | -10/Materials | Entered Subcaves 2168 | -10/Subcaves | A swath of the cavern ceiling suddenly collapsed 3084 | -10/Subcaves | Learned Materials garrison access intel 3156 | -10/Subcaves | Learned location of Zion (-7) 3156 | -10/Subcaves | Met a Zionite searching for "candidates" 3269 | -10/Subcaves | Ambushed by Subdweller buried in earth 3363 | -10/Subcaves | Shifting Twisted Machinery released Sub. Beam Cannon 3499 | -10/Subcaves | Discovered new exit (range 13) 3804 | -10/Subcaves | Shifting Twisted Machinery released Sub. Laser 3851 | -10/Subcaves | Shifting Twisted Machinery released Sub. Shrapnel Launcher 3932 | -10/Subcaves | Core integrity fell below 50% 3983 | -10/Subcaves | Released subatomizers from SUBCON Basin 4226 | -10/Subcaves | Visited Clippyterm 4231 | -10/Subcaves | Learned Factory garrison access intel 4311 | -10/Subcaves | Disturbed a concealed Subdweller 4454 | -10/Subcaves | Entered Recycling 4473 | -7/Recycling | Scanned before Scraplab entrance 4512 | -7/Recycling | Core integrity fell below 20% 4801 | -7/Recycling | Build established: Scavenger-Mutant 4842 | -7/Recycling | Entered Scraplab 4856 | -7/Recycling | Discovered new exit (range 2) 4859 | -7/Recycling | Entered Scraptown 5099 | -7/Scraptown | Discovered new exit (range 13) 5268 | -7/Scraptown | Visited Symbiants 5322 | -7/Scraptown | Visited Shadow of the Wyrm 5605 | -7/Scraptown | Visited IN-MT5's Study 5647 | -7/Scraptown | Visited The Evicted 5705 | -7/Scraptown | Visited Science Testing Area 5757 | -7/Scraptown | Visited Scrapoid Research Area 6281 | -7/Scraptown | Visited UFD Registry 6281 | -7/Scraptown | Registered with UFD as "Pulseslicer" 6403 | -7/Scraptown | Guru changed UFD alias to "Datashaft" 6699 | -7/Scraptown | Visited Chapter 10 6746 | -7/Scraptown | Visited Science Guys 6805 | -7/Scraptown | Visited DA-N13 Charitable Foundation 6812 | -7/Scraptown | Found DCF Scrap (28 items) 6869 | -7/Scraptown | Visited Infowarlord's Domain 6959 | -7/Scraptown | Visited Botcube Research 6969 | -7/Scraptown | Found Botcube 7008 | -7/Scraptown | Visited Curators Association 7059 | -7/Scraptown | Visited Derelict Rescue Squad 7101 | -7/Scraptown | Visited Abandonware Association 7163 | -7/Scraptown | Visited Cartography Club 7472 | -7/Scraptown | Delivered Scrap Shield to a Scientist 7790 | -7/Scraptown | Discovered new exit (range 3) 8248 | -7/Scraptown | Learned abandonware demo "POISON.EXE" 8317 | -7/Scraptown | Found Surveybot 17 Chip 8477 | -7/Scraptown | Found Exp. Terrain Scanner 8610 | -7/Scraptown | Found Scrap Suit 8613 | -7/Scraptown | Found Scrap Suit 9634 | -7/Scraptown | Found DRS Beacon 10484 | -7/Scraptown | Entered Factory 10484 | -5/Factory | Evolved 10 slots: Power x1, Propulsion x2, Utility x6, Weapon x1 10485 | -5/Factory | Loaded intel: 4 garrison access locations 10781 | -5/Factory | Build established: Derelict-Mutant 10781 | -5/Factory | Found Prototype Launcher 11109 | -5/Factory | Build established: Scavenger-Tank 11169 | -5/Factory | Scrapoids reinforcements arrived? 11440 | -5/Factory | Scrapoid reinforcements arrived 11506 | -5/Factory | Discovered new exit (range 5) 11534 | -5/Factory | Lost 3 allies 11787 | -5/Factory | Identified exit to Upper Caves 11787 | -5/Factory | Identified exit to Extension 11808 | -5/Factory | Discovered new exit (range 8) 12010 | -5/Factory | Build established: Scavenger-Scrapper 12085 | -5/Factory | Entered Extension 12826 | -5/Extension | Scrapoids reinforcements arrived? 12938 | -5/Extension | Spotted B-75 Beast 12944 | -5/Extension | Allies destroyed B-75 Beast 12969 | -5/Extension | Spotted B-75 Beast 12973 | -5/Extension | Destroyed B-75 Beast 13012 | -5/Extension | Lost 4 allies 13054 | -5/Extension | Rescued a captive Derelict 13060 | -5/Extension | Allied Derelicts emerged from ambush trap array 13069 | -5/Extension | Rescued a captive Derelict 13129 | -5/Extension | Rescued a captive Derelict 13130 | -5/Extension | Rescued a captive Derelict 13159 | -5/Extension | Rescued a captive Derelict 13275 | -5/Extension | Lost 4 allies 13289 | -5/Extension | Rescued a captive Derelict 13408 | -5/Extension | Lost 6 allies 13585 | -5/Extension | Disrupted transfer network 13769 | -5/Extension | Rescued A7 13770 | -5/Extension | Lost 9 allies 13866 | -5/Extension | Discovered new exit (range 15) 13867 | -5/Extension | Discovered new exit (range 15) 13946 | -5/Extension | Entered Cetus 13946 | -5/Cetus | Accompanied by 3 allies (A7) 13951 | -5/Cetus | Acquired a Cetus Manufacturing Module code from A7 13966 | -5/Cetus | Spotted Cetus Guard 13966 | -5/Cetus | Spotted Cetus Guard 13968 | -5/Cetus | Spotted Cetus Guard 13973 | -5/Cetus | Allies destroyed Cetus Guard 13973 | -5/Cetus | Destroyed Cetus Guard 13977 | -5/Cetus | Spotted Cetus Guard 13987 | -5/Cetus | Allies destroyed Cetus Guard 13987 | -5/Cetus | Destroyed Cetus Guard 14071 | -5/Cetus | Started Cetus Manufacturing Module 14084 | -5/Cetus | Discovered new exit (range 16) 14096 | -5/Cetus | Manufactured an Enhanced Grunt 14121 | -5/Cetus | Manufactured an Enhanced Grunt 14146 | -5/Cetus | Manufactured an Enhanced Grunt 14171 | -5/Cetus | Manufactured an Enhanced Grunt 14196 | -5/Cetus | Manufactured an Enhanced Grunt 14242 | -5/Cetus | Spotted Cetus Guard 14243 | -5/Cetus | Spotted Cetus Guard 14247 | -5/Cetus | Spotted Cetus Guard 14251 | -5/Cetus | Spotted Cetus Guard 14255 | -5/Cetus | Allies destroyed Cetus Guard 14259 | -5/Cetus | Destroyed Cetus Guard 14260 | -5/Cetus | Destroyed Cetus Guard 14263 | -5/Cetus | Destroyed Cetus Guard 14280 | -5/Cetus | Discovered new exit (range 16) 14285 | -5/Cetus | Met Revision 17 14349 | -5/Cetus | Entered Archives 14349 | -5/Archives | Accompanied by 6 allies (A7) 14392 | -5/Archives | Discovered new exit (range 14) 14415 | -5/Archives | Discovered new exit (range 15) 14561 | -5/Archives | Discovered new exit (range 14) 15206 | -5/Archives | Botcube activated 15220 | -5/Archives | Botcube completed mutation into treaded form, armed with 1 gun, 1 cannon. 15353 | -5/Archives | Entered Hub_04(d) 15353 | -5/Hub_04(d) | Accompanied by 5 allies 15530 | -5/Hub_04(d) | Discovered new exit (range 7) 15714 | -5/Hub_04(d) | Network Hub disabled 15724 | -5/Hub_04(d) | Spotted Lightning 15733 | -5/Hub_04(d) | Entered Factory 15733 | -4/Factory | Accompanied by 1 ally 15733 | -4/Factory | Evolved 2 slots: Utility x2 15818 | -4/Factory | Discovered new exit (range 7) 15825 | -4/Factory | Identified exit to Upper Caves 16139 | -4/Factory | Scrapoids reinforcements arrived? 16240 | -4/Factory | Found Prototype Processor 16258 | -4/Factory | Identified Exp. Melee Analysis Suite 16656 | -4/Factory | Entered Upper Caves 16656 | -4/Upper Caves | Accompanied by 1 ally 16658 | -4/Upper Caves | UFD Scientist delivered a prototype 16666 | -4/Upper Caves | Found Prototype Protection 16666 | -4/Upper Caves | Identified Enh. Scrap Shield 16967 | -4/Upper Caves | Encountered a Warlord checkpoint 17199 | -4/Upper Caves | Attracted the attention of an 0b10 checkpoint 17245 | -4/Upper Caves | Found Botcube 17367 | -4/Upper Caves | Discovered new exit (range 16) 17568 | -4/Upper Caves | Attacked by a delusional Derelict stockpiling parts 17632 | -4/Upper Caves | Entered another Upper Caves area 17734 | -4/Upper Caves | Spotted B-86 Titan 17809 | -4/Upper Caves | Attracted the attention of an 0b10 base 17831 | -4/Upper Caves | Destroyed B-86 Titan 18097 | -4/Upper Caves | Discovered new exit (range 14) 18191 | -4/Upper Caves | Entered Zhirov 18197 | -4/Zhirov | Discovered new exit (range 3) 18215 | -4/Zhirov | Met Zhirov 18248 | -4/Zhirov | Learned location of Quarantine (-2) 18248 | -4/Zhirov | Learned location of Command (-1) 18272 | -4/Zhirov | Zhirov requested help retrieving the SGEMP Prototype 18423 | -4/Zhirov | Found Alien Artifact 18423 | -4/Zhirov | Identified Integrated Dissipator 18423 | -4/Zhirov | Installed Integrated Dissipator, increased core heat dissipation (+20) 18435 | -4/Zhirov | Found Alien Artifact 18503 | -4/Zhirov | Entered Proximity Caves 18504 | -3/Proximity Caves | Activated DRS Beacon 18688 | -3/Proximity Caves | Spotted B-86 Titan 18695 | -3/Proximity Caves | Spotter reported a threat 18727 | -3/Proximity Caves | Destroyed B-86 Titan 18742 | -3/Proximity Caves | Spotter reported a threat 18752 | -3/Proximity Caves | Lost 3 allies 18755 | -3/Proximity Caves | Spotter reported a threat 19204 | -3/Proximity Caves | Discovered new exit (range 3) 19481 | -3/Proximity Caves | Entered Research 19481 | -3/Research | Evolved 2 slots: Utility x2 19681 | -3/Research | Revision forces began assault on 0b10 19681 | -3/Research | Discovered new exit (range 54) 19780 | -3/Research | Met up with Revision 17++ 19802 | -3/Research | Found Unknown Launcher 19803 | -3/Research | Identified Fusion Bomb Launcher 19906 | -3/Research | Discovered new exit (range 40) 19967 | -3/Research | Identified exit to Research 20106 | -3/Research | Spotted B-86 Titan 20181 | -3/Research | Research terminal network offline 20591 | -3/Research | Discovered new exit (range 7) 20602 | -3/Research | Identified exit to Testing 20761 | -3/Research | Discovered exit to Testing (range 10) 20917 | -3/Research | Spotted Striker 20972 | -3/Research | Discovered exit to Research (range 15) 20997 | -3/Research | Spotted Executioner 21004 | -3/Research | Spotted Striker 21004 | -3/Research | Spotted Striker 21006 | -3/Research | Spotted Striker 21031 | -3/Research | Destroyed Striker 21058 | -3/Research | Lost 3 allies 21306 | -3/Research | Entered Testing 21495 | -3/Testing | Found Prototype Energy Cannon 21495 | -3/Testing | Identified Imp. Potential Cannon 21837 | -3/Testing | Repaired Lyr. Heavy Armor Plating 21991 | -3/Testing | System corruption reached 10% 22300 | -3/Testing | Found Prototype Protection 22300 | -3/Testing | Identified Med. Regenerative Plating 22304 | -3/Testing | Found Prototype Protection 22304 | -3/Testing | Identified SHELL Armor 22310 | -3/Testing | Found Hvy. Regenerative Plating 22318 | -3/Testing | Found Med. Regenerative Plating 22384 | -3/Testing | Identified Transdimensional Reconstructor 22497 | -3/Testing | Found Prototype Hackware 22497 | -3/Testing | Identified Ghost Barrier 22649 | -3/Testing | Spotted Striker 22649 | -3/Testing | Spotted Striker 22707 | -3/Testing | Destroyed Striker 22708 | -3/Testing | Spotted Alpha 7 22877 | -3/Testing | Destroyed Alpha 7 22897 | -3/Testing | Found Prototype Processor 23024 | -3/Testing | Found Prototype Energy Cannon 23024 | -3/Testing | Identified Disintegrator 23093 | -3/Testing | Found Prototype Energy Gun 23093 | -3/Testing | Identified Tachyon Dispersion Ray 23175 | -3/Testing | Discovered exit to Research (range 9) 23209 | -3/Testing | Found Prototype Device 23209 | -3/Testing | Identified 2N-1CE's Frost Array 23248 | -3/Testing | Entered Research 23248 | -2/Research | Evolved 2 slots: Power x1, Utility x1 23527 | -2/Research | First assault squad dispatched 23567 | -2/Research | Destroyed 10 combat bots 23597 | -2/Research | Warped through subspace 23616 | -2/Research | Destroyed 9 combat bots 23659 | -2/Research | Spotted B-90 Cyclops 23698 | -2/Research | System corruption reached 10% 23736 | -2/Research | Lost 14 parts (2p4n6u2w) 23739 | -2/Research | Core integrity fell below 50% 23759 | -2/Research | Spotted B-90 Cyclops 23768 | -2/Research | Core integrity fell below 20% 23782 | -2/Research | Found Prototype Device 23782 | -2/Research | Identified Thermal Barrier 23784 | -2/Research | Scrapoids reinforcements arrived? 23787 | -2/Research | Destroyed by P-80 Master with Gamma Rifle Last Messages --------------- 23755_ ALERT: Suspicious activity at Recycling Unit R004. Dispatching Investigation squad. 23759_ ALERT: Suspicious intruders detected, dispatching Cutter reinforcements to area. 23760_ Acquired Hyp. Railgun. 23766_ Reaction Chamber disabled. 23767_ Acquired Imp. Linear Gravjet. 23770_ R-10 Processor destroyed. 23772_ SPPMBD T8RU8|U4KZKZZ/V XIRX 23774_ Imp. Linear Gravjet destroyed. 23777_ Hyp. Railgun destroyed. 23782_ Acquired Prototype Device. 23782_ Identified Thermal Barrier. 23784_ >> RECYCLER: Scrapoids arrived? 23785_ W-44 Eye sends out distress signal. 23785_ ALERT: Suspicious intruders detected, dispatching Cutter reinforcements to area. 23786_ Slammed into S-43 Plague. 23787_ Destabilizing: System interference. 23787_ Adv. Signal Interpreter temporarily disabled. Map ----- +----------------------------------------------------+ | ?????????????????????????????????????????????????? | | ?????????????????????????????????????????????????? | | ???????????????????????????????????#????????????#? | | ??????????????????????? ?????????????????????????? | | ?????????????????????????????????????????????????? | | ????????????????????????????????????????#????????? | | ?????????????????????????????"???????????????????? | | ?????????????????????????????????????????????????? | | ?????????????????????????????????????????????????? | | ????????????????????H????????????????????????????? | | ?????????????????????????????????????????????????? | | ????????????????????????????????????????????????#? | | ?????????????????????????????????????????????????? | | ????????????????????########?????????????????????? | | ????????????????????# #?????????????????????? | | ????????????????????# #???? ??????????#?????? | | ????????????????????# #????????????########## | | ????????????????????#* #????????????# """ ! | | ????????????????????# #???"????????# """ | | ????????????????????# ##???????????# """ | | ????????????????????# #????????????# """ | | ????????????????????# ##???????????# | | ????????????????????# #???????????## ! | | ????????????????????# #????????????#= !]]]! | | ??????????????#?????# s #????????????# %[]!! | | ??????????????# ######@####################/!!! | | ??????????????# kss * !%% | | ??????????????# sss ]!/&! | | ??????????????# s s !! | | ??????????????# w kk u | | ??????????????###############p R################ | | ???????????????????#????????# # #??# | | ?????????????????############ s # #??# | | ?????????????? /w """#??? | | ?????????????? # """#??? | | ?????????????? # ! """????# | | ??????????????? ;? #????## | | ???????###???################ # ! #????## | | ???????# / ## # # ##????# | | ???????# ## # #?#########?????# | | ???????? """ ?# + ##??###???#?????# | | ???????? """ ?# # #?? #?????????# | | ?###????? """ ??# ??# #?? #???#?????# | | ? ????? ??# ????# #? #?????????# | | ????? ???# ????? # #?/ #?????????# | | """"" ???? ???####????????# # #?????????# | | """"" ?#+##+################# # = = #?#???????# | | """"" # + #?????????# | | + # #??????? ?# | | # !%* # #?????????# | +----------------------------------------------------+ Best States ------------- Heat Dissipation 169 Energy Generation 67 Energy Capacity 1430 Matter Stores 453 Matter Capacity 500 Sight Range 16 Terrain Scan Range 30 Terrain Scan Density 10 Jamming Range 16 Cloak Strength 3 Additional Mass Support 9 Armor Coverage 2100 Resistance: KI 30 Utility Shielding 33 Evasion (%) 57 Armor Integrity Analysis 40 Recoil Reduction 2 Energy Filtering 30 Offensive Hacking 12 Item Schematics ----------------- Graphene Brace | -5/Extension | Hacked Assault Drone Bay | -4/Zhirov | Free Exp. Heat Sink | -4/Zhirov | Free Exp. Optical Array | -4/Zhirov | Free Imp. Arc Thrower | -4/Zhirov | Free Centrium Medium Armor Plating | -3/Testing | Archive Hvy. Regenerative Plating | -3/Testing | Hacked Exp. ECM Suite | -3/Testing | Archive Robot Schematics ------------------ R-06 Scavenger | -3/Testing | Archive Fabricated ------------ Nothing Alien Tech Used ----------------- Integrated Dissipator Transdimensional Reconstructor Achievements -------------- None Challenges ------------ None Game ------ Seed SuspensionCompanionRipteeth Manual? 0 Play Time 05:59:03 Cumulative 1331.7 hours Start 2024.08.26 @ 01:24:58 End 2024.09.03 @ 00:26:08 Sessions 9 Manual Loads 0 Difficulty Rogue Special Mode None Game No. 470 Rogue 470 Adventurer 0 Explorer 0 Win Type - Total 30 Types 14/2/8/0/0/0/6/0/0 Lore% 76 Gallery% 90 Achievement% 85 Wizard Run 0 Options --------- Layout 1 ASCII 0 Keyboard 0 Movement Vi Keybinds 0 Fullscreen 0 Font 14/CherryShadow Map View 64x42 Zoom Use 0% Tactical HUD 1 Map Filters NONE Filters NONE Steam 1 RUN: bdd13629-7b18-4a0d-99a0-59f17c1ffa5a